bitfinex-derivatives/quotes_BNBF0:USTF0_20250810
["timestamp","ask_amount","ask_price","bid_price","bid_amount"]
[1754841160729,1.6766953,799.85,798.81,0.287]
[1754841161230,1.6766953,799.84,798.77,0.21746602]
[1754841161532,1.6766953,799.79,798.77,0.21746602]
[1754841161733,1.6766953,799.78,798.77,0.21746602]
[1754841162032,1.6766953,799.79,798.77,0.21746602]
[1754841162434,1.6766953,799.78,798.77,0.21746602]
[1754841162734,1.6766953,799.79,798.77,0.21746602]
[1754841163334,1.6766953,799.78,798.86,0.287]
[1754841163536,1.6766953,799.78,798.77,0.71746602]
[1754841163931,1.6766953,799.79,798.96,0.287]
[1754841164131,1.6766953,799.79,798.81,0.5]
[1754841164536,1.6766953,799.79,798.85,0.5]
[1754841164737,1.1139828,799.64,798.85,0.5]
[1754841165237,1.1139828,799.63,798.85,0.5]
[1754841165434,1.1139828,799.6,798.85,0.5]
[1754841165836,1.1139828,799.63,798.85,0.5]
[1754841166233,1.1139828,799.62,798.85,0.5]
[1754841167437,1.1139828,799.62,798.77,0.21746602]
[1754841167937,1.1139828,799.66,798.77,0.21746602]
[1754841168339,1.1139828,799.65,798.77,0.21746602]
[1754841169541,1.1139828,799.64,798.77,0.21746602]
[1754841170235,1.1139828,799.66,798.77,0.21746602]
[1754841170436,1.6766953,799.82,798.77,0.21746602]
[1754841170437,1.1139828,799.65,798.77,0.21746602]
[1754841171036,1.1139828,799.66,798.77,0.21746602]
[1754841171239,1.1139828,799.65,798.77,0.21746602]
[1754841172445,1.1139828,799.64,798.77,0.21746602]
[1754841173943,1.1139828,799.65,798.77,0.21746602]
[1754841175047,1.1139828,799.64,798.77,0.21746602]
[1754841175349,1.1139828,799.62,798.77,0.21746602]
[1754841176845,1.1139828,799.57,798.77,0.21746602]
[1754841177144,0.9139828,799.57,798.77,0.21746602]
[1754841177346,1.6766953,799.65,798.77,0.21746602]
[1754841177747,1.6766953,799.63,798.77,0.21746602]
[1754841178947,1.6766953,799.69,798.77,0.21746602]
[1754841179749,1.6766953,799.61,798.77,0.21746602]
[1754841180045,1.6766953,799.57,798.77,0.21746602]
[1754841181246,1.6766953,799.58,798.77,0.21746602]
[1754841181448,1.6766953,799.85,798.77,0.21746602]
[1754841181652,1.6766953,799.84,798.77,0.21746602]
[1754841181849,1.6766953,799.86,798.77,0.21746602]
[1754841182053,1.6766953,799.87,798.77,0.21746602]
[1754841185456,1.6766953,799.86,798.77,0.21746602]
[1754841187359,1.6766953,799.85,798.77,0.21746602]
[1754841188059,1.6766953,799.86,798.77,0.21746602]
[1754841188260,1.6766953,799.85,798.77,0.21746602]
[1754841188558,1.6766953,799.87,798.77,0.21746602]
[1754841189160,1.6766953,799.85,798.77,0.21746602]
[1754841189359,1.6766953,799.88,798.77,0.21746602]
[1754841189558,1.6766953,799.9,798.77,0.21746602]
[1754841190161,1.6766953,799.89,798.77,0.21746602]
[1754841191459,1.6766953,799.79,798.77,0.21746602]
[1754841192458,1.6766953,799.78,798.77,0.21746602]
[1754841193563,2.8022445,800.62,798.77,0.21746602]
[1754841193564,1.6766953,799.77,798.77,0.21746602]
[1754841194261,1.6766953,799.73,798.77,0.21746602]
[1754841195365,1.6766953,799.72,798.77,0.21746602]
[1754841197668,1.6766953,799.69,798.77,0.21746602]
[1754841197866,1.6766953,799.68,798.77,0.21746602]
[1754841198366,1.6766953,799.65,798.77,0.21746602]
[1754841198564,1.6766953,799.74,798.77,0.21746602]
[1754841198866,1.6766953,799.78,798.78,0.5]
[1754841199063,1.4766953,799.78,798.78,0.5]
[1754841199260,2.8022445,800.2,798.78,0.5]
[1754841199465,0.73672457,800.19,798.78,0.5]
[1754841199664,0.73672457,800.18,798.78,0.5]
[1754841199864,0.73672457,800.17,798.78,0.5]
[1754841200166,0.73672457,800.16,798.78,0.5]
[1754841200366,0.73672457,800.15,798.78,0.5]
[1754841200566,0.73672457,800.14,798.78,0.5]
[1754841200866,3.53896907,800.13,798.8,0.295]
[1754841201064,0.73672457,800.12,798.8,0.295]
[1754841201266,0.73672457,800.11,798.78,0.5]
[1754841201469,0.73672457,800.1,798.78,0.5]
[1754841201769,0.73672457,800.09,798.78,0.5]
[1754841201965,0.73672457,800.08,798.78,0.5]
[1754841202171,0.73672457,800.07,798.78,0.5]
[1754841202366,0.73672457,800.06,798.78,0.5]
[1754841202565,2.8022445,800.11,798.78,0.5]
[1754841202770,0.73668709,800.1,798.78,0.5]
[1754841202970,2.8022445,800.26,798.78,0.5]
[1754841203273,0.73675329,800.25,798.78,0.5]
[1754841203470,0.73675329,800.24,798.78,0.5]
[1754841203771,0.73675329,800.23,798.78,0.5]
[1754841203970,0.73675329,800.22,798.78,0.5]
[1754841204168,0.73675329,800.21,798.78,0.5]
[1754841204470,0.73675329,800.2,798.78,0.5]
[1754841204673,0.73675329,800.19,798.78,0.5]
[1754841204968,0.73675329,800.18,798.78,0.5]
[1754841205167,0.73675329,800.17,798.78,0.5]
[1754841205372,2.8022445,800.52,798.78,0.5]
[1754841205568,0.73645228,800.51,798.78,0.5]
[1754841205766,0.73645228,800.5,798.78,0.5]
[1754841205967,0.73645228,800.49,798.86,0.5]
[1754841206168,0.73645228,800.48,798.86,0.5]
[1754841206472,0.73645228,800.47,798.86,0.5]
[1754841206669,2.8022445,800.52,798.86,0.5]
[1754841206670,0.73645228,800.46,798.86,0.5]
[1754841206869,0.73645228,800.45,798.86,0.5]
[1754841207169,1.1180036,799.72,798.86,0.5]
[1754841207473,1.1180036,799.73,798.86,0.5]
[1754841207673,1.1180036,799.71,798.86,0.5]
[1754841208373,1.1180036,799.71,798.92,0.308]
[1754841208569,1.1180036,799.68,798.92,0.308]
[1754841209271,1.1180036,799.69,798.92,0.308]
[1754841209469,1.1180036,799.68,798.92,0.308]
[1754841209973,1.1180036,799.66,798.92,0.308]
[1754841210875,1.1180036,799.66,798.88,0.5]
[1754841211076,0.9180036,799.66,798.92,0.308]
[1754841211576,0.9180036,799.66,798.88,0.5]
[1754841211776,2.8022445,800.43,798.88,0.5]
[1754841212076,0.73580891,800.42,798.88,0.5]
[1754841212276,0.73580891,800.41,798.88,0.5]
[1754841212477,0.73580891,800.4,798.88,0.5]
[1754841212679,0.73580891,800.39,798.88,0.5]
[1754841212978,0.73580891,800.38,798.88,0.5]
[1754841213174,0.73580891,800.37,798.88,0.5]
[1754841213478,0.73580891,800.36,798.88,0.5]
[1754841213675,0.73580891,800.35,798.83,0.289]
[1754841213875,0.73580891,800.34,798.83,0.289]
[1754841214080,0.73580891,800.33,798.81,0.5]
[1754841214276,0.73580891,800.32,798.81,0.5]
[1754841214475,0.73580891,800.31,798.81,0.5]
[1754841214676,0.73580891,800.3,798.81,0.5]
[1754841214876,0.73580891,800.29,798.81,0.5]
[1754841215079,0.73580891,800.28,798.81,0.5]
[1754841215278,0.73580891,800.27,798.81,0.5]
[1754841215580,0.73580891,800.26,798.81,0.5]
[1754841215780,0.73580891,800.25,798.81,0.5]
[1754841216081,0.73580891,800.24,798.81,0.5]
[1754841216281,0.73580891,800.23,798.81,0.5]
[1754841216481,0.73580891,800.22,798.81,0.5]
[1754841216681,0.73580891,800.21,798.81,0.5]
[1754841216884,0.73580891,800.2,798.81,0.5]
[1754841217079,0.73580891,800.19,798.81,0.5]
[1754841217284,0.73580891,800.18,798.81,0.5]
[1754841217481,0.73580891,800.17,798.81,0.5]
[1754841217782,0.73580891,800.16,798.81,0.5]
[1754841217984,2.8022445,800.76,798.81,0.5]
[1754841218184,0.73583555,800.75,799.01,0.5]
[1754841218485,0.73583555,800.74,799.01,0.5]
[1754841218685,0.73583555,800.73,799.01,0.5]
[1754841218881,0.73583555,800.72,799.01,0.5]
[1754841219183,1.6760582,799.94,799.01,0.5]
[1754841219782,1.6760582,799.99,798.81,0.5]
[1754841220189,1.6760582,800.0,798.81,0.5]
[1754841220491,0.837942,799.59,798.81,0.5]
[1754841221388,0.837942,799.54,798.81,0.5]
[1754841221692,0.837942,799.54,798.97,0.324]
[1754841221892,0.837942,799.54,798.88,0.288]
[1754841222389,1.6760582,799.9,798.88,0.288]
[1754841222592,1.6760582,799.91,798.88,0.288]
[1754841222793,1.6760582,799.94,798.97,0.5]
[1754841222992,1.6760582,799.99,798.97,0.5]
[1754841223192,1.6760582,800.0,798.97,0.5]
[1754841224194,1.6760582,800.03,798.97,0.5]
[1754841224394,1.6760582,799.98,799.03,0.287]
[1754841224589,1.6760582,799.98,799.04,0.5]
[1754841224789,1.6760582,799.99,799.04,0.5]
[1754841225595,1.6760582,800.0,799.04,0.5]
[1754841226093,1.6760582,800.15,799.04,0.5]
[1754841226289,1.6760582,800.16,799.04,0.5]
[1754841226492,1.6760582,800.13,799.04,0.5]
[1754841227996,1.6760582,800.14,799.04,0.5]
[1754841229296,1.6760582,800.16,799.04,0.5]
[1754841229497,1.6760582,800.16,799.2,0.5]
[1754841230095,1.6760582,800.18,799.2,0.5]
[1754841231096,1.6760582,800.27,799.2,0.5]
[1754841233400,1.6760582,800.3,799.2,0.5]
[1754841233603,1.6760582,800.31,799.2,0.5]
[1754841234301,1.6760582,800.32,799.2,0.5]
[1754841235503,1.6760582,800.31,799.2,0.5]
[1754841235703,1.6760582,800.3,799.2,0.5]
[1754841235904,1.6760582,800.25,799.2,0.5]
[1754841236499,1.6760582,800.26,799.2,0.5]
[1754841237901,1.6760582,800.29,799.2,0.5]
[1754841238306,1.6760582,800.29,799.24,0.286]
[1754841238502,1.6760582,800.3,799.24,0.286]
[1754841240209,1.6760582,800.4,799.24,0.286]
[1754841240810,1.6760582,800.4,799.33,0.285]
[1754841241012,1.1123551,800.21,799.42,0.284]
[1754841241308,1.1123551,800.2,799.27,0.5]
[1754841241611,1.1123551,800.2,799.24,0.343]
[1754841243209,1.1123551,800.19,799.24,0.343]
[1754841244009,0.9123551,800.19,799.24,0.343]
[1754841244214,0.9123551,800.19,799.23,0.5]
[1754841244513,1.6760582,800.38,799.23,0.5]
[1754841245010,1.6760582,800.39,799.23,0.5]
[1754841245913,1.6760582,800.4,799.23,0.5]
[1754841246111,1.6760582,800.4,799.24,0.306]
[1754841246310,1.6760582,800.4,799.23,0.5]
[1754841246610,1.6760582,800.39,799.26,0.285]
[1754841246814,1.6760582,800.39,799.24,0.306]
[1754841247312,1.6760582,800.4,799.32,0.285]
[1754841247515,1.6760582,800.4,799.24,0.306]
[1754841247817,1.6760582,800.38,799.24,0.306]
[1754841248517,1.6760582,800.4,799.32,0.286]
[1754841248716,1.6760582,800.39,799.26,0.5]
[1754841250117,1.6760582,800.27,799.26,0.5]
[1754841250414,1.6760582,800.28,799.26,0.5]
[1754841250613,1.6760582,800.27,799.26,0.5]
[1754841254819,1.6760582,800.26,799.24,0.344]
[1754841255119,1.6760582,800.26,799.23,0.5]
[1754841255519,1.6760582,800.25,799.23,0.5]
[1754841255723,2.8022445,800.87,799.23,0.5]
[1754841255724,1.6760582,800.17,799.23,0.5]
[1754841256024,1.6760582,800.18,799.23,0.5]
[1754841256421,1.6760582,800.17,799.23,0.5]
[1754841258025,1.6760582,800.43,799.23,0.5]
[1754841258325,1.6760582,800.42,799.23,0.5]
[1754841259025,1.6760582,800.4,799.23,0.5]
[1754841260225,1.6760582,800.42,799.23,0.5]
[1754841260425,1.6760582,800.24,799.23,0.5]
[1754841260826,1.6760582,800.23,799.11,0.309]
[1754841261027,1.6760582,800.23,799.16,0.33]
[1754841261227,1.6760582,800.23,799.1,0.5]
[1754841262232,1.6760582,800.15,799.1,0.5]
[1754841262433,1.6760582,800.16,799.1,0.5]
[1754841263029,1.6760582,800.21,799.1,0.5]
[1754841263234,1.6760582,800.2,799.1,0.5]
[1754841263631,1.6760582,800.21,799.1,0.5]
[1754841268337,1.6760582,800.2,799.1,0.5]
[1754841268538,1.6760582,800.17,799.1,0.5]
[1754841270036,1.6760582,800.13,799.1,0.5]
[1754841270240,1.6760582,800.12,799.1,0.5]
[1754841270740,2.8022445,800.77,799.1,0.5]
[1754841271035,0.73397431,800.76,799.1,0.5]
[1754841271237,2.8022445,800.77,799.1,0.5]
[1754841271238,0.73397431,800.75,799.1,0.5]
[1754841271442,2.8022445,800.72,799.1,0.5]
[1754841271638,0.73397431,800.71,799.1,0.5]
[1754841271839,0.73397431,800.7,799.1,0.5]
[1754841272041,0.73397431,800.69,799.1,0.5]
[1754841272242,0.73397431,800.68,799.1,0.5]
[1754841272442,0.73397431,800.67,799.1,0.5]
[1754841272640,0.73397431,800.66,799.1,0.5]
[1754841272844,2.8022445,800.57,799.1,0.5]
[1754841273043,0.73397431,800.56,799.1,0.5]
[1754841273339,0.73397431,800.55,799.1,0.5]
[1754841273538,0.73397431,800.54,799.1,0.5]
[1754841273839,0.73397431,800.53,799.1,0.5]
[1754841274037,1.1140216,799.89,799.1,0.5]
[1754841274442,1.1140216,799.87,799.1,0.5]
[1754841275142,1.1140216,799.86,799.1,0.5]
[1754841275340,0.9140216,799.86,799.1,0.5]
[1754841276042,2.8022445,800.52,799.1,0.5]
[1754841276241,0.73454912,800.51,799.1,0.5]
[1754841276542,0.73454912,800.5,799.1,0.5]
[1754841276741,0.73454912,800.49,799.1,0.5]
[1754841276945,0.73454912,800.48,799.1,0.5]
[1754841277242,0.73454912,800.47,799.1,0.5]
[1754841277440,0.73454912,800.46,799.1,0.5]
[1754841277642,0.73454912,800.45,799.1,0.5]
[1754841277841,0.73454912,800.44,799.14,0.291]
[1754841278140,0.73454912,800.43,799.13,0.292]
[1754841278344,0.73454912,800.42,799.13,0.292]
[1754841278547,2.8022445,800.5,799.13,0.292]
[1754841278745,0.73498673,800.49,799.13,0.292]
[1754841278941,2.8022445,800.5,799.11,0.349]
[1754841278942,1.50604284,800.48,799.11,0.349]
[1754841279245,2.8022445,800.44,799.1,0.5]
[1754841279445,1.50604284,800.43,799.1,0.5]
[1754841279742,1.50604284,800.42,799.1,0.5]
[1754841279946,1.50604284,800.41,799.1,0.5]
[1754841280245,1.50604284,800.4,799.1,0.5]
[1754841280444,1.50604284,800.39,799.1,0.5]
[1754841280642,0.77105611,800.38,799.1,0.5]
[1754841280845,0.77105611,800.37,799.1,0.5]
[1754841281041,0.77105611,800.36,799.1,0.5]
[1754841281242,0.77105611,800.35,799.28,0.33]
[1754841281440,0.77105611,800.34,799.1,0.5]
[1754841281640,0.77105611,800.33,799.1,0.5]
[1754841281941,0.77105611,800.32,799.1,0.5]
[1754841282241,0.83734818,799.64,799.11,0.348]
[1754841282445,0.77105611,799.63,799.1,0.5]
[1754841282644,0.83734818,799.64,799.1,0.5]
[1754841282645,0.77105611,799.62,799.1,0.5]
[1754841282842,0.77105611,799.61,799.1,0.5]
[1754841283046,0.77105611,799.6,799.1,0.5]
[1754841283247,0.57105611,799.59,799.1,0.5]
[1754841283541,0.83734818,799.63,799.1,0.5]
[1754841285146,0.83734818,799.62,799.1,0.5]
[1754841286546,0.83734818,799.63,799.1,0.5]
[1754841286745,2.8022445,800.47,799.1,0.5]
[1754841286746,0.83734818,799.62,799.1,0.5]
[1754841287247,2.8022445,800.47,799.1,0.5]
[1754841287248,0.83734818,799.63,799.1,0.5]
[1754841287843,0.83734818,799.65,799.1,0.5]
[1754841289944,0.83734818,799.66,799.1,0.5]
[1754841290145,0.83734818,799.66,799.31,0.333]
[1754841290350,0.83734818,799.66,799.33,0.293]
[1754841290551,0.83734818,799.66,799.23,0.253]
[1754841290751,0.83734818,799.66,799.34,0.293]
[1754841290950,0.83734818,799.66,799.23,0.253]
[1754841292150,0.83734818,799.64,799.23,0.253]
[1754841292749,0.83734818,799.64,799.1,0.5]
[1754841292948,0.63734818,799.64,799.1,0.5]
[1754841293350,1.6754296,799.94,799.1,0.5]
[1754841293654,1.6754296,799.93,799.1,0.5]
[1754841293850,1.6754296,799.95,799.1,0.5]
[1754841296250,1.6754296,799.95,799.13,0.292]
[1754841296556,1.6754296,799.92,799.1,0.5]
[1754841296753,0.78960779,799.91,799.1,0.5]
[1754841296954,0.78960779,799.9,799.1,0.5]
[1754841297154,0.78960779,799.89,799.1,0.5]
[1754841297356,0.78960779,799.88,799.1,0.5]
[1754841297654,0.78960779,799.87,799.1,0.5]
[1754841297852,0.78960779,799.86,799.11,0.35]
[1754841298052,0.78960779,799.85,799.1,0.5]
[1754841298256,0.78960779,799.84,799.1,0.5]
[1754841298455,0.78960779,799.83,799.1,0.5]
[1754841298656,0.78960779,799.82,799.1,0.5]
[1754841298953,0.78960779,799.81,799.1,0.5]
[1754841299152,0.78960779,799.8,799.1,0.5]
[1754841299352,0.78960779,799.79,799.1,0.5]
[1754841299555,0.78960779,799.78,799.1,0.5]
[1754841299756,0.78960779,799.77,799.1,0.5]
[1754841300053,0.78960779,799.76,799.1,0.5]
[1754841300256,0.78960779,799.75,799.1,0.5]
[1754841300453,0.78960779,799.74,799.1,0.5]
[1754841300656,0.78960779,799.73,799.1,0.5]
[1754841300857,0.78960779,799.72,799.11,0.35]
[1754841301057,0.78960779,799.71,799.1,0.5]
[1754841301357,0.78960779,799.7,799.12,0.293]
[1754841301654,0.78960779,799.69,799.07,0.5]
[1754841301851,0.78960779,799.68,799.07,0.5]
[1754841302054,0.78960779,799.67,799.07,0.5]
[1754841302254,0.78960779,799.66,799.07,0.5]
[1754841302456,0.78960779,799.65,798.99,0.293]
[1754841302658,0.78960779,799.64,798.94,0.5]
[1754841302855,0.78960779,799.63,798.94,0.5]
[1754841303056,1.6754296,800.12,798.94,0.5]
[1754841303057,0.78960779,799.62,798.94,0.5]
[1754841303262,0.78960779,799.61,799.06,0.293]
[1754841303453,0.78960779,799.6,798.94,0.5]
[1754841303658,0.78960779,799.59,798.94,0.5]
[1754841303859,0.78960779,799.58,799.12,0.293]
[1754841304055,0.78960779,799.57,799.12,0.293]
[1754841304254,0.78960779,799.56,799.12,0.293]
[1754841304459,0.78960779,799.55,798.98,0.5]
[1754841304659,0.78960779,799.54,798.98,0.5]
[1754841304956,0.78960779,799.53,798.98,0.5]
[1754841305160,0.78960779,799.52,798.98,0.5]
[1754841305355,0.78960779,799.51,798.98,0.5]
[1754841305556,0.58960779,799.5,798.98,0.5]
[1754841305755,1.1158202,799.81,798.98,0.5]
[1754841306556,1.1158202,799.8,798.98,0.5]
[1754841306760,1.1158202,799.84,799.05,0.5]
[1754841308956,1.1158202,799.85,799.05,0.5]
[1754841309564,1.1158202,799.78,799.05,0.5]
[1754841310258,1.1158202,799.66,799.05,0.5]
[1754841312967,1.1158202,799.67,799.05,0.5]
[1754841313866,1.1158202,799.66,799.05,0.5]
[1754841314364,1.1158202,799.65,799.05,0.5]
[1754841316566,1.1158202,799.68,799.05,0.5]
[1754841317466,0.78844828,799.67,799.05,0.5]
[1754841317666,0.78844828,799.66,799.05,0.5]
[1754841317969,0.78844828,799.65,799.2,0.333]
[1754841318166,0.78844828,799.64,799.11,0.293]
[1754841318365,0.58844828,799.63,799.11,0.253]
[1754841318667,1.1158202,799.73,799.11,0.253]
[1754841319069,1.1158202,799.74,799.11,0.253]
[1754841319472,1.1158202,799.73,799.14,0.5]
[1754841320373,1.1158202,799.72,799.14,0.5]
[1754841320873,1.1158202,799.7,799.14,0.5]
[1754841321067,1.1158202,799.69,799.02,0.5]
[1754841321269,1.1158202,799.74,799.02,0.5]
[1754841321970,1.1158202,799.69,799.02,0.5]
[1754841322169,1.1158202,799.69,798.93,0.421]
[1754841322372,1.1158202,799.7,798.93,0.31]
[1754841322566,1.1158202,799.83,798.95,0.293]
[1754841322769,1.1158202,799.83,798.93,0.31]
[1754841322971,1.1158202,799.82,798.97,0.293]
[1754841323170,1.1158202,799.84,798.93,0.31]
[1754841323873,1.1158202,799.84,798.95,0.5]
[1754841325374,1.1158202,799.85,798.95,0.5]
[1754841325572,1.1158202,799.88,798.95,0.5]
[1754841326278,1.1158202,799.79,798.95,0.5]
[1754841326473,1.1158202,799.83,798.95,0.5]
[1754841327875,1.1158202,799.8,798.95,0.5]
[1754841330383,0.78672795,799.79,798.95,0.5]
[1754841330584,0.78672795,799.78,798.95,0.5]
[1754841330881,0.78672795,799.77,798.95,0.5]
[1754841331080,0.78672795,799.76,798.95,0.5]
[1754841331285,0.78672795,799.75,798.95,0.5]
[1754841331485,0.78672795,799.74,798.95,0.5]
[1754841331781,1.6754296,799.98,798.77,0.21746602]
[1754841331782,0.78672795,799.73,799.18,0.289]
[1754841332086,0.58672795,799.72,799.26,0.5]
[1754841332286,1.1158202,800.19,799.26,0.5]
[1754841332886,1.1158202,800.21,799.26,0.5]
[1754841333188,1.1158202,800.21,799.23,0.251]
[1754841333383,1.1158202,800.22,799.23,0.251]
[1754841333585,1.1158202,800.22,799.24,0.5]
[1754841334988,1.6754296,800.5,799.24,0.5]
[1754841334989,1.1158202,800.23,799.24,0.5]
[1754841335991,1.1158202,800.27,799.24,0.5]
[1754841336387,1.1158202,800.29,799.24,0.5]
[1754841337288,1.1158202,800.26,799.24,0.5]
[1754841338685,5.5492027,802.93,799.24,0.5]
[1754841338686,1.1158202,800.25,799.24,0.5]
[1754841339290,1.1158202,800.26,799.24,0.5]
[1754841339791,1.1158202,800.25,799.24,0.5]
[1754841340995,1.1158202,799.98,799.24,0.5]
[1754841341495,1.1158202,800.0,799.24,0.5]
[1754841342891,1.1158202,800.03,799.25,0.255]
[1754841343090,1.1158202,800.03,799.28,0.5]
[1754841344194,1.89968446,800.02,799.28,0.5]
[1754841344395,0.78386426,800.01,799.28,0.5]
[1754841344695,0.78386426,800.0,799.28,0.5]
[1754841344894,0.78386426,799.99,799.28,0.5]
[1754841345095,0.78386426,799.99,798.77,0.21746602]
[1754841345096,0.78386426,799.98,799.29,0.285]
[1754841345294,0.78386426,799.97,799.28,0.5]
[1754841345493,0.58386426,799.96,799.28,0.5]
[1754841345697,0.58386426,799.95,799.28,0.5]
[1754841345898,1.1158202,800.17,799.28,0.5]
[1754841348394,1.1158202,800.15,799.28,0.5]
[1754841348799,1.1158202,800.15,799.31,0.289]
[1754841349098,1.1158202,800.15,799.28,0.5]
[1754841349498,1.1158202,800.15,799.33,0.289]
[1754841349996,1.1158202,800.15,799.28,0.5]
[1754841350901,1.1158202,800.13,799.28,0.5]
[1754841351197,1.1158202,800.12,799.28,0.5]
[1754841351401,1.1158202,800.09,799.28,0.5]
[1754841351900,1.1158202,799.94,799.28,0.5]
[1754841352902,1.1158202,799.92,799.28,0.5]
[1754841353096,0.83750686,799.79,799.28,0.5]
[1754841353898,0.63750686,799.79,799.28,0.5]
[1754841354299,1.1158202,799.93,799.28,0.5]
[1754841356702,1.1158202,799.94,799.28,0.5]
[1754841357800,0.77852522,799.93,799.28,0.5]
[1754841358004,0.77852522,799.92,799.28,0.5]
[1754841358201,0.77852522,799.91,799.28,0.5]
[1754841358401,0.77852522,799.9,799.28,0.5]
[1754841358609,0.77852522,799.89,799.28,0.5]
[1754841358903,0.77852522,799.88,799.28,0.5]
[1754841359202,0.77852522,799.87,799.28,0.5]
[1754841359405,0.77852522,799.86,799.28,0.5]
[1754841359606,0.77849147,799.85,799.28,0.5]
[1754841359806,0.77849147,799.84,799.28,0.5]
[1754841360003,0.77849147,799.83,799.28,0.5]
[1754841360205,0.77849147,799.82,799.28,0.5]
[1754841360502,0.77849147,799.81,799.28,0.5]
[1754841360706,0.77849147,799.8,799.28,0.5]
[1754841360906,0.77849147,799.79,799.28,0.5]
[1754841361205,0.77849147,799.78,799.28,0.5]
[1754841361402,0.77849147,799.77,799.28,0.5]
[1754841361607,0.77849147,799.76,799.28,0.5]
[1754841361906,0.77849147,799.75,799.28,0.5]
[1754841362105,1.1158202,800.08,799.28,0.5]
[1754841362106,0.77849147,799.74,799.28,0.5]
[1754841362303,0.77849147,799.73,799.28,0.5]
[1754841362607,0.77849147,799.72,799.28,0.5]
[1754841362806,0.57849147,799.71,799.28,0.5]
[1754841363008,1.1158202,800.08,799.28,0.5]
[1754841363205,3.8844419,801.41,799.28,0.5]
[1754841363206,1.1158202,800.05,799.28,0.5]
[1754841363407,1.1158202,800.11,799.28,0.5]
[1754841364009,1.1158202,800.09,799.28,0.5]
[1754841364305,1.1158202,800.07,799.28,0.5]
[1754841365705,1.1158202,800.03,799.06,0.5]
[1754841368010,1.1158202,799.95,799.06,0.5]
[1754841368705,1.1158202,799.94,799.06,0.5]
[1754841368909,1.1158202,799.92,799.06,0.5]
[1754841369705,1.1158202,799.69,799.06,0.5]
[1754841370105,1.1158202,799.7,799.06,0.5]
[1754841371509,1.1158202,799.69,799.06,0.5]
[1754841372412,1.1158202,799.86,799.06,0.5]
[1754841372613,1.1158202,799.87,799.03,0.21726644]
[1754841373013,1.1158202,799.96,799.05,0.5]
[1754841373213,1.1158202,799.97,799.05,0.5]
[1754841373612,1.1158202,799.96,799.05,0.5]
[1754841374714,0.77624242,799.95,799.05,0.5]
[1754841374914,0.77624242,799.94,799.05,0.5]
[1754841375113,0.77624242,799.93,799.05,0.5]
[1754841375311,0.77624242,799.92,799.05,0.5]
[1754841375610,0.77624242,799.91,799.05,0.5]
[1754841375816,0.77624242,799.9,799.05,0.5]
[1754841376110,0.77624242,799.89,799.05,0.5]
[1754841376309,0.77624242,799.88,799.05,0.5]
[1754841376512,0.77624242,799.87,799.05,0.5]
[1754841376709,0.77624242,799.86,799.05,0.5]
[1754841376912,0.77624242,799.85,799.05,0.5]
[1754841377212,0.77624242,799.84,799.05,0.5]
[1754841377411,1.1158202,799.96,799.05,0.5]
[1754841377412,0.77624242,799.83,799.05,0.5]
[1754841377614,0.77624242,799.82,799.05,0.5]
[1754841377814,0.77624242,799.81,799.05,0.5]
[1754841378111,0.77624242,799.8,799.05,0.5]
[1754841378315,0.57624242,799.79,799.05,0.5]
[1754841378515,1.1158202,799.96,799.03,0.21726644]
[1754841378810,1.1158202,799.97,799.03,0.51226644]
[1754841379015,1.1158202,799.97,799.19,0.295]
[1754841379211,1.1158202,799.97,799.04,0.5]
[1754841379515,1.1158202,799.98,799.04,0.5]
[1754841380917,1.1158202,799.86,799.04,0.5]
[1754841381112,1.1158202,799.87,799.04,0.5]
[1754841381313,1.1158202,799.86,799.04,0.5]
[1754841381818,1.1158202,799.81,799.14,0.5]